[Event "*** Titled Tuesday Blitz"]
[Site "Chess.com"]
[Date "2021.03.16"]
[Round "9"]
[White "crazy_but_lazy"]
[Black "Kotofeyca"]
[Result "1-0"]
[WhiteElo "2466"]
[BlackElo "2342"]
[TimeControl "180+1"]
[EndTime "11:41:39 PDT"]
[Termination "crazy_but_lazy won by resignation"]

1. d4 {[%clk 0:03:00.9]} 1... d5 {[%clk 0:02:47.3]} 2. Bf4 {[%clk 0:03:00]} 2...
c6 {[%clk 0:02:47.2]} 3. e3 {[%clk 0:02:58.9]} 3... Nf6 {[%clk 0:02:47]} 4. h3
{[%clk 0:02:56.4]} 4... Bf5 {[%clk 0:02:46.6]} 5. Nd2 {[%clk 0:02:54.2]} 5... e6
{[%clk 0:02:46.6]} 6. Ngf3 {[%clk 0:02:52]} 6... Bd6 {[%clk 0:02:46.5]} 7. Ne5
{[%clk 0:02:50.8]} 7... h6 {[%clk 0:02:43.2]} 8. Bd3 {[%clk 0:02:37.7]} 8...
Bxd3 {[%clk 0:02:37]} 9. cxd3 {[%clk 0:02:38.6]} 9... Qe7 {[%clk 0:02:32]} 10.
O-O {[%clk 0:02:37.9]} 10... O-O {[%clk 0:02:31.6]} 11. Ndf3 {[%clk 0:02:30.8]}
11... c5 {[%clk 0:02:28.8]} 12. dxc5 {[%clk 0:02:30.1]} 12... Bxc5 {[%clk
0:02:27.3]} 13. Qb3 {[%clk 0:02:30.3]} 13... Bb6 {[%clk 0:02:01.4]} 14. Rac1
{[%clk 0:02:25.3]} 14... Nbd7 {[%clk 0:02:00.6]} 15. Nxd7 {[%clk 0:02:11.7]}
15... Nxd7 {[%clk 0:01:56.2]} 16. d4 {[%clk 0:02:11.9]} 16... Rfc8 {[%clk
0:01:52.7]} 17. Rc2 {[%clk 0:01:55.1]} 17... Nf6 {[%clk 0:01:27.3]} 18. Rfc1
{[%clk 0:01:54.1]} 18... Qd8 {[%clk 0:01:23]} 19. Ne5 {[%clk 0:01:51.9]} 19...
Ne4 {[%clk 0:01:20.5]} 20. Nd3 {[%clk 0:01:45]} 20... Nd2 {[%clk 0:01:00.9]} 21.
Rxd2 {[%clk 0:01:41.8]} 1-0

[Event "*** Titled Tuesday Blitz"]
[Site "Chess.com"]
[Date "2021.03.16"]
[Round "9"]
[White "MITerryble"]
[Black "jefferyx"]
[Result "0-1"]
[WhiteElo "2911"]
[BlackElo "3008"]
[TimeControl "180+1"]
[EndTime "11:41:54 PDT"]
[Termination "jefferyx won by resignation"]

1. d4 {[%clk 0:03:00.9]} 1... g6 {[%clk 0:02:55.1]} 2. Nf3 {[%clk 0:02:59.9]}
2... Bg7 {[%clk 0:02:54.1]} 3. c3 {[%clk 0:02:59.7]} 3... d6 {[%clk 0:02:52.6]}
4. e4 {[%clk 0:02:56.2]} 4... Nc6 {[%clk 0:02:53]} 5. Bc4 {[%clk 0:02:54.2]}
5... e5 {[%clk 0:02:50.2]} 6. dxe5 {[%clk 0:02:52.4]} 6... Nxe5 {[%clk 0:02:50]}
7. Nxe5 {[%clk 0:02:52]} 7... Bxe5 {[%clk 0:02:49.7]} 8. Nd2 {[%clk 0:02:42.7]}
8... Bg7 {[%clk 0:02:46.1]} 9. Nf3 {[%clk 0:02:40.4]} 9... Ne7 {[%clk 0:02:46]}
10. O-O {[%clk 0:02:34]} 10... O-O {[%clk 0:02:46.1]} 11. Bf4 {[%clk 0:02:33.3]}
11... Nc6 {[%clk 0:02:45.7]} 12. h3 {[%clk 0:02:28.5]} 12... Be6 {[%clk
0:02:45.5]} 13. Bb3 {[%clk 0:02:20.3]} 13... h6 {[%clk 0:02:45]} 14. Re1 {[%clk
0:02:20]} 14... Qd7 {[%clk 0:02:38.8]} 15. Qd2 {[%clk 0:02:11.7]} 15... Kh7
{[%clk 0:02:38.5]} 16. Ba4 {[%clk 0:02:02.1]} 16... Qe7 {[%clk 0:02:37]} 17. e5
{[%clk 0:01:45.2]} 17... Nxe5 {[%clk 0:02:33.4]} 18. Nxe5 {[%clk 0:01:44.1]}
18... dxe5 {[%clk 0:02:34.3]} 19. Bxe5 {[%clk 0:01:45]} 19... Bxe5 {[%clk
0:02:35.2]} 20. Rxe5 {[%clk 0:01:45]} 20... Rad8 {[%clk 0:02:36.1]} 21. Qe3
{[%clk 0:01:43.4]} 21... Qf6 {[%clk 0:02:24.4]} 22. Bb3 {[%clk 0:01:31.1]} 22...
Bxb3 {[%clk 0:02:23]} 23. axb3 {[%clk 0:01:32]} 23... a6 {[%clk 0:02:23.9]} 24.
Re1 {[%clk 0:01:30.8]} 24... Rd7 {[%clk 0:02:20]} 25. Re7 {[%clk 0:01:23.2]}
25... Rfd8 {[%clk 0:02:17.1]} 26. b4 {[%clk 0:01:13.4]} 26... Kg7 {[%clk
0:02:12.3]} 27. Re2 {[%clk 0:00:57]} 27... Rxe7 {[%clk 0:02:05.4]} 28. Qxe7
{[%clk 0:00:54.1]} 28... Rd1+ {[%clk 0:02:05.6]} 29. Kh2 {[%clk 0:00:54.4]}
29... Qf4+ {[%clk 0:02:05.9]} 30. g3 {[%clk 0:00:53]} 30... Qf3 {[%clk
0:02:06.8]} 0-1

[Event "*** Titled Tuesday Blitz"]
[Site "Chess.com"]
[Date "2021.03.16"]
[Round "9"]
[White "Artem_Sadovsky"]
[Black "Aslanov_Umid"]
[Result "1-0"]
[WhiteElo "2630"]
[BlackElo "2425"]
[TimeControl "180+1"]
[EndTime "11:42:14 PDT"]
[Termination "Artem_Sadovsky won by resignation"]

1. Nf3 {[%clk 0:03:00.9]} 1... d5 {[%clk 0:00:43.5]} 2. c4 {[%clk 0:03:00.2]}
2... e6 {[%clk 0:00:41.9]} 3. e3 {[%clk 0:03:00.2]} 3... c6 {[%clk 0:00:42]} 4.
b3 {[%clk 0:03:00.7]} 4... Nf6 {[%clk 0:00:32.5]} 5. Bb2 {[%clk 0:03:00.9]} 5...
Be7 {[%clk 0:00:33.1]} 6. Be2 {[%clk 0:03:01.4]} 6... O-O {[%clk 0:00:33.6]} 7.
O-O {[%clk 0:03:02]} 7... Nbd7 {[%clk 0:00:34.2]} 8. d4 {[%clk 0:03:01.5]} 8...
b6 {[%clk 0:00:34.6]} 9. Nbd2 {[%clk 0:03:01.9]} 9... Bb7 {[%clk 0:00:35.3]} 10.
Qc2 {[%clk 0:03:01.9]} 10... Rc8 {[%clk 0:00:35.9]} 11. Rad1 {[%clk 0:03:01.6]}
11... c5 {[%clk 0:00:36.4]} 12. Qb1 {[%clk 0:02:59.6]} 12... Qc7 {[%clk
0:00:36.9]} 13. Bd3 {[%clk 0:02:59.5]} 13... h6 {[%clk 0:00:36.5]} 14. Rfe1
{[%clk 0:02:58.6]} 14... cxd4 {[%clk 0:00:36.8]} 15. exd4 {[%clk 0:02:56.5]}
15... dxc4 {[%clk 0:00:37.3]} 16. bxc4 {[%clk 0:02:55.5]} 16... Nb8 {[%clk
0:00:32.6]} 17. d5 {[%clk 0:02:47.7]} 17... exd5 {[%clk 0:00:32.3]} 18. Bf5
{[%clk 0:02:47.8]} 18... Rcd8 {[%clk 0:00:29.3]} 19. Be5 {[%clk 0:02:48.3]}
19... Qc5 {[%clk 0:00:23.8]} 20. Nb3 {[%clk 0:02:44]} 20... Qb4 {[%clk
0:00:22.9]} 21. c5 {[%clk 0:02:10.7]} 21... Bxc5 {[%clk 0:00:21.6]} 22. Bxf6
{[%clk 0:02:04.2]} 22... gxf6 {[%clk 0:00:22.5]} 23. Nfd4 {[%clk 0:02:03.4]}
23... Bxd4 {[%clk 0:00:22.2]} 24. Rxd4 {[%clk 0:02:02.9]} 24... Qc3 {[%clk
0:00:17.2]} 25. Re3 {[%clk 0:02:02.5]} 25... Qc7 {[%clk 0:00:15.9]} 26. Rg3+
{[%clk 0:02:02.4]} 26... Kh8 {[%clk 0:00:15.5]} 27. Rh4 {[%clk 0:02:03.1]} 1-0

[Event "*** Titled Tuesday Blitz"]
[Site "Chess.com"]
[Date "2021.03.16"]
[Round "9"]
[White "Skatchkov_V"]
[Black "BahadirOzen"]
[Result "0-1"]
[WhiteElo "2621"]
[BlackElo "2774"]
[TimeControl "180+1"]
[EndTime "11:42:20 PDT"]
[Termination "BahadirOzen won by resignation"]

1. c4 {[%clk 0:02:59.6]} 1... g6 {[%clk 0:02:59.4]} 2. Nf3 {[%clk 0:02:58.4]}
2... Bg7 {[%clk 0:02:59.8]} 3. g3 {[%clk 0:02:58.5]} 3... d6 {[%clk 0:02:56.2]}
4. Bg2 {[%clk 0:02:58.9]} 4... Nf6 {[%clk 0:02:56.8]} 5. O-O {[%clk 0:02:59]}
5... O-O {[%clk 0:02:57.4]} 6. d4 {[%clk 0:02:59.4]} 6... c6 {[%clk 0:02:57.2]}
7. Nc3 {[%clk 0:02:59.6]} 7... Bf5 {[%clk 0:02:57.7]} 8. Qb3 {[%clk 0:02:30.6]}
8... Qc8 {[%clk 0:02:44.1]} 9. Nh4 {[%clk 0:02:23.8]} 9... Be6 {[%clk
0:02:43.3]} 10. d5 {[%clk 0:02:08.8]} 10... cxd5 {[%clk 0:02:43.3]} 11. cxd5
{[%clk 0:02:09.7]} 11... Bd7 {[%clk 0:02:43.5]} 12. Bg5 {[%clk 0:02:01.5]} 12...
Na6 {[%clk 0:02:41.4]} 13. Rac1 {[%clk 0:02:01.7]} 13... Qb8 {[%clk 0:02:17.3]}
14. Nf3 {[%clk 0:01:55.4]} 14... Nc5 {[%clk 0:02:13.4]} 15. Qb4 {[%clk
0:01:55.7]} 15... h6 {[%clk 0:02:10.5]} 16. Be3 {[%clk 0:01:56]} 16... Rc8
{[%clk 0:02:08.6]} 17. Qh4 {[%clk 0:01:53.9]} 17... g5 {[%clk 0:02:07.5]} 18.
Qd4 {[%clk 0:01:47.4]} 18... Nfe4 {[%clk 0:01:50]} 19. Qd1 {[%clk 0:01:43.8]}
19... Nxc3 {[%clk 0:01:46.7]} 20. bxc3 {[%clk 0:01:44.7]} 20... Qc7 {[%clk
0:01:42.6]} 21. Bd4 {[%clk 0:01:45.1]} 21... Ne4 {[%clk 0:01:31.5]} 22. Bxg7
{[%clk 0:01:40.4]} 22... Kxg7 {[%clk 0:01:32.4]} 23. Qd4+ {[%clk 0:01:40.4]}
23... Nf6 {[%clk 0:01:32.7]} 24. h4 {[%clk 0:01:40.3]} 24... Qc4 {[%clk
0:01:26.2]} 25. hxg5 {[%clk 0:01:39.6]} 25... hxg5 {[%clk 0:01:25.6]} 26. Qe3
{[%clk 0:01:30.1]} 26... Qxd5 {[%clk 0:01:20.1]} 27. Nxg5 {[%clk 0:01:30.5]}
27... Qf5 {[%clk 0:01:13.6]} 28. Bxb7 {[%clk 0:01:24.3]} 28... Bc6 {[%clk
0:01:11.5]} 29. Bxc8 {[%clk 0:01:23.5]} 29... Rxc8 {[%clk 0:01:10]} 30. f3
{[%clk 0:01:19.3]} 30... Rh8 {[%clk 0:01:09]} 31. Kf2 {[%clk 0:01:18.1]} 31...
Ng4+ {[%clk 0:01:09.1]} 0-1

[Event "*** Titled Tuesday Blitz"]
[Site "Chess.com"]
[Date "2021.03.16"]
[Round "9"]
[White "Omk124"]
[Black "GoltsevDmitry2000"]
[Result "0-1"]
[WhiteElo "2555"]
[BlackElo "2797"]
[TimeControl "180+1"]
[EndTime "11:42:56 PDT"]
[Termination "GoltsevDmitry2000 won by resignation"]

1. e4 {[%clk 0:03:00.9]} 1... e6 {[%clk 0:02:57]} 2. d4 {[%clk 0:03:01]} 2... d5
{[%clk 0:02:56.9]} 3. Nd2 {[%clk 0:03:01.3]} 3... Nf6 {[%clk 0:02:55.9]} 4. e5
{[%clk 0:03:01.7]} 4... Nfd7 {[%clk 0:02:56]} 5. Bd3 {[%clk 0:03:01.4]} 5... c5
{[%clk 0:02:54.6]} 6. c3 {[%clk 0:03:01.8]} 6... Nc6 {[%clk 0:02:53.5]} 7. Ne2
{[%clk 0:03:02]} 7... cxd4 {[%clk 0:02:52.2]} 8. cxd4 {[%clk 0:03:02.4]} 8... f6
{[%clk 0:02:51]} 9. exf6 {[%clk 0:03:02.7]} 9... Nxf6 {[%clk 0:02:49.9]} 10. Nf3
{[%clk 0:03:03.2]} 10... Bd6 {[%clk 0:02:48.9]} 11. O-O {[%clk 0:03:03.1]} 11...
O-O {[%clk 0:02:46.9]} 12. Bg5 {[%clk 0:02:56.8]} 12... Qb6 {[%clk 0:02:39.1]}
13. Qb1 {[%clk 0:02:33.2]} 13... h6 {[%clk 0:02:34.4]} 14. Be3 {[%clk
0:02:16.7]} 14... Ng4 {[%clk 0:02:30.2]} 15. Bh7+ {[%clk 0:01:56.6]} 15... Kh8
{[%clk 0:02:27.4]} 16. Nh4 {[%clk 0:01:56.9]} 16... Ne7 {[%clk 0:02:19.1]} 17.
g3 {[%clk 0:01:54.8]} 17... Nxe3 {[%clk 0:02:16.9]} 18. fxe3 {[%clk 0:01:55.7]}
18... Rxf1+ {[%clk 0:02:14.9]} 19. Kxf1 {[%clk 0:01:55.1]} 19... Bd7 {[%clk
0:02:11.2]} 20. Kg2 {[%clk 0:01:54]} 20... e5 {[%clk 0:02:08.9]} 21. Ng6+ {[%clk
0:01:31]} 21... Nxg6 {[%clk 0:02:06]} 22. Bxg6 {[%clk 0:01:31.9]} 22... Bg4
{[%clk 0:02:00.8]} 23. Qc2 {[%clk 0:01:25.8]} 23... Rc8 {[%clk 0:01:50.1]} 24.
Qd1 {[%clk 0:01:23.3]} 24... Qxb2 {[%clk 0:01:45.4]} 25. Bd3 {[%clk 0:01:13.6]}
25... e4 {[%clk 0:01:31.4]} 26. Rb1 {[%clk 0:01:10.9]} 26... Qxa2 {[%clk
0:01:31]} 27. Ra1 {[%clk 0:01:11.2]} 27... Qb2 {[%clk 0:01:26.9]} 28. Rb1 {[%clk
0:01:11.2]} 28... Qa3 {[%clk 0:01:27.4]} 29. Bb5 {[%clk 0:01:04]} 29... Qxe3
{[%clk 0:01:26.1]} 30. Qf1 {[%clk 0:01:01.9]} 30... Bf3+ {[%clk 0:01:22.2]} 31.
Kh3 {[%clk 0:01:00.3]} 31... Qg5 {[%clk 0:01:22.4]} 0-1

[Event "*** Titled Tuesday Blitz"]
[Site "Chess.com"]
[Date "2021.03.16"]
[Round "9"]
[White "Sokoloco"]
[Black "Buffy7"]
[Result "0-1"]
[WhiteElo "2440"]
[BlackElo "2631"]
[TimeControl "180+1"]
[EndTime "11:42:59 PDT"]
[Termination "Buffy7 won by resignation"]

1. b3 {[%clk 0:03:00.9]} 1... c5 {[%clk 0:02:59.9]} 2. Bb2 {[%clk 0:02:59.6]}
2... Nc6 {[%clk 0:03:00.8]} 3. e3 {[%clk 0:03:00]} 3... Nf6 {[%clk 0:03:00.7]}
4. f4 {[%clk 0:02:59.7]} 4... g6 {[%clk 0:03:00]} 5. Nf3 {[%clk 0:03:00.1]} 5...
Bg7 {[%clk 0:03:00.4]} 6. Bb5 {[%clk 0:03:00.8]} 6... O-O {[%clk 0:03:00.5]} 7.
O-O {[%clk 0:03:00.4]} 7... d6 {[%clk 0:03:00.6]} 8. Bxc6 {[%clk 0:02:57.6]}
8... bxc6 {[%clk 0:03:01.5]} 9. c4 {[%clk 0:02:57.2]} 9... a5 {[%clk 0:02:56.7]}
10. Nc3 {[%clk 0:02:57.4]} 10... Nd7 {[%clk 0:02:53.1]} 11. Rb1 {[%clk
0:02:54.1]} 11... e5 {[%clk 0:02:52.7]} 12. fxe5 {[%clk 0:02:52.4]} 12... Nxe5
{[%clk 0:02:53.4]} 13. Nxe5 {[%clk 0:02:52.9]} 13... Bxe5 {[%clk 0:02:54.3]} 14.
Ne4 {[%clk 0:02:53.5]} 14... Bxb2 {[%clk 0:02:50.2]} 15. Rxb2 {[%clk 0:02:54.4]}
15... f5 {[%clk 0:02:50.9]} 16. Nc3 {[%clk 0:02:49.2]} 16... Qf6 {[%clk
0:02:50]} 17. Rb1 {[%clk 0:02:42.6]} 17... Be6 {[%clk 0:02:46.5]} 18. Qf3 {[%clk
0:02:42.7]} 18... Bd7 {[%clk 0:02:45.6]} 19. Na4 {[%clk 0:02:33.1]} 19... Rae8
{[%clk 0:02:43.3]} 20. Nb6 {[%clk 0:02:30.2]} 20... Qg7 {[%clk 0:02:43.8]} 21.
Rbd1 {[%clk 0:02:09.9]} 21... Re6 {[%clk 0:02:35.7]} 22. d4 {[%clk 0:02:09]}
22... cxd4 {[%clk 0:02:36.6]} 23. exd4 {[%clk 0:02:09]} 23... Rfe8 {[%clk
0:02:36.7]} 24. d5 {[%clk 0:02:04.8]} 24... cxd5 {[%clk 0:02:36.1]} 25. Qxd5
{[%clk 0:02:03.2]} 25... Kh8 {[%clk 0:02:34.6]} 26. Kh1 {[%clk 0:01:54.1]} 26...
h5 {[%clk 0:02:15.5]} 27. h3 {[%clk 0:01:42.3]} 27... Kh7 {[%clk 0:02:14.3]} 28.
Nxd7 {[%clk 0:01:40.4]} 28... Qxd7 {[%clk 0:02:15.2]} 29. c5 {[%clk 0:01:39]}
29... Re2 {[%clk 0:02:09.9]} 30. c6 {[%clk 0:01:31.4]} 30... Qc7 {[%clk
0:02:04.2]} 31. Qxd6 {[%clk 0:00:51.4]} 31... Qxd6 {[%clk 0:02:05.1]} 32. Rxd6
{[%clk 0:00:51.8]} 32... Rc2 {[%clk 0:02:05.7]} 33. Rf3 {[%clk 0:00:48.6]} 33...
h4 {[%clk 0:01:50.4]} 34. Rf4 {[%clk 0:00:48.5]} 34... Re1+ {[%clk 0:01:44.3]}
35. Kh2 {[%clk 0:00:46.8]} 35... g5 {[%clk 0:01:44.8]} 36. Rxf5 {[%clk
0:00:40.2]} 36... Rcc1 {[%clk 0:01:44.7]} 37. g4 {[%clk 0:00:09.3]} 37... Re2+
{[%clk 0:01:44.3]} 0-1

[Event "*** Titled Tuesday Blitz"]
[Site "Chess.com"]
[Date "2021.03.16"]
[Round "9"]
[White "dpopadic"]
[Black "djano"]
[Result "1-0"]
[WhiteElo "2362"]
[BlackElo "2480"]
[TimeControl "180+1"]
[EndTime "11:43:08 PDT"]
[Termination "dpopadic won by resignation"]

1. e4 {[%clk 0:03:00.9]} 1... c5 {[%clk 0:02:59.5]} 2. Nc3 {[%clk 0:02:59]} 2...
Nc6 {[%clk 0:02:57.9]} 3. f4 {[%clk 0:02:57.1]} 3... g6 {[%clk 0:02:54.6]} 4.
Nf3 {[%clk 0:02:56]} 4... Bg7 {[%clk 0:02:55]} 5. Bc4 {[%clk 0:02:54.1]} 5... e6
{[%clk 0:02:55.1]} 6. f5 {[%clk 0:02:54]} 6... Nge7 {[%clk 0:02:54.9]} 7. fxe6
{[%clk 0:02:54.1]} 7... fxe6 {[%clk 0:02:54.7]} 8. d3 {[%clk 0:02:54.3]} 8... d5
{[%clk 0:02:52.7]} 9. Bb3 {[%clk 0:02:53.9]} 9... O-O {[%clk 0:02:37]} 10. O-O
{[%clk 0:02:52.4]} 10... Nd4 {[%clk 0:02:06.9]} 11. Bg5 {[%clk 0:02:48.2]} 11...
Nxb3 {[%clk 0:02:03.4]} 12. axb3 {[%clk 0:02:47.1]} 12... d4 {[%clk 0:02:02.3]}
13. Na4 {[%clk 0:02:46.7]} 13... h6 {[%clk 0:02:01.6]} 14. Bxe7 {[%clk
0:02:45.7]} 14... Qxe7 {[%clk 0:02:02.5]} 15. Nb6 {[%clk 0:02:45.6]} 15... axb6
{[%clk 0:01:52.2]} 16. Rxa8 {[%clk 0:02:44.5]} 16... e5 {[%clk 0:01:52]} 17. Qe2
{[%clk 0:02:31.9]} 17... Bf6 {[%clk 0:01:48.3]} 18. Nd2 {[%clk 0:02:25]} 18...
b5 {[%clk 0:01:39.5]} 19. Rxc8 {[%clk 0:02:01.1]} 19... Rxc8 {[%clk 0:01:36.2]}
20. Qg4 {[%clk 0:02:00.9]} 20... Rc6 {[%clk 0:01:28.2]} 21. Qxg6+ {[%clk
0:01:57.4]} 21... Bg7 {[%clk 0:01:27.8]} 22. Qg4 {[%clk 0:01:51.6]} 22... Rf6
{[%clk 0:01:21.1]} 23. Rxf6 {[%clk 0:01:49.2]} 23... Qxf6 {[%clk 0:01:21.5]} 24.
Nf3 {[%clk 0:01:46.3]} 24... Kh7 {[%clk 0:01:12]} 25. Qf5+ {[%clk 0:01:40.4]}
25... Qxf5 {[%clk 0:01:07.6]} 26. exf5 {[%clk 0:01:40.4]} 26... Kg8 {[%clk
0:01:00.7]} 27. g4 {[%clk 0:01:34.3]} 27... Kf8 {[%clk 0:00:59.1]} 28. Nd2
{[%clk 0:01:34]} 28... Kf7 {[%clk 0:00:45.6]} 29. Ne4 {[%clk 0:01:33.3]} 29...
Bf8 {[%clk 0:00:45.4]} 30. Kg2 {[%clk 0:01:31.3]} 30... Be7 {[%clk 0:00:45.7]}
31. Kg3 {[%clk 0:01:30.7]} 31... b6 {[%clk 0:00:45.5]} 32. h4 {[%clk 0:01:29.9]}
32... Kg7 {[%clk 0:00:42.6]} 33. g5 {[%clk 0:01:29.7]} 33... hxg5 {[%clk
0:00:43.5]} 34. hxg5 {[%clk 0:01:29.5]} 34... Kf7 {[%clk 0:00:44.4]} 35. Kg4
{[%clk 0:01:29.6]} 35... c4 {[%clk 0:00:44.2]} 36. bxc4 {[%clk 0:01:22.2]} 36...
bxc4 {[%clk 0:00:45.1]} 37. b3 {[%clk 0:01:14.8]} 37... cxb3 {[%clk 0:00:43]}
38. cxb3 {[%clk 0:01:14.6]} 38... b5 {[%clk 0:00:43.9]} 39. f6 {[%clk
0:01:13.3]} 39... Ba3 {[%clk 0:00:43.3]} 40. Kf5 {[%clk 0:01:12.9]} 40... Bc1
{[%clk 0:00:43.7]} 41. g6+ {[%clk 0:01:12.9]} 41... Kf8 {[%clk 0:00:44.6]} 42.
Kxe5 {[%clk 0:01:12.8]} 1-0

[Event "*** Titled Tuesday Blitz"]
[Site "Chess.com"]
[Date "2021.03.16"]
[Round "9"]
[White "DanilovVladimir"]
[Black "tylityli"]
[Result "0-1"]
[WhiteElo "2405"]
[BlackElo "2292"]
[TimeControl "180+1"]
[EndTime "11:43:14 PDT"]
[Termination "tylityli won by resignation"]

1. d4 {[%clk 0:02:48.8]} 1... Nf6 {[%clk 0:02:58.3]} 2. Bg5 {[%clk 0:02:48.3]}
2... Ne4 {[%clk 0:02:57.5]} 3. Bf4 {[%clk 0:02:48.5]} 3... d5 {[%clk 0:02:58.4]}
4. f3 {[%clk 0:02:48.6]} 4... Nf6 {[%clk 0:02:57.7]} 5. e4 {[%clk 0:02:49.2]}
5... dxe4 {[%clk 0:02:56.6]} 6. Nc3 {[%clk 0:02:49.7]} 6... Nd5 {[%clk
0:02:41.1]} 7. Nxd5 {[%clk 0:02:44.2]} 7... Qxd5 {[%clk 0:02:40.3]} 8. c4 {[%clk
0:02:44.6]} 8... Qa5+ {[%clk 0:02:33.3]} 9. Bd2 {[%clk 0:02:43]} 9... Qf5 {[%clk
0:02:31.2]} 10. Be2 {[%clk 0:02:14.7]} 10... Nc6 {[%clk 0:02:18.7]} 11. Bc3
{[%clk 0:01:52.4]} 11... e5 {[%clk 0:02:05.7]} 12. d5 {[%clk 0:01:45.6]} 12...
Nb4 {[%clk 0:02:01.6]} 13. f4 {[%clk 0:00:56.2]} 13... exf4 {[%clk 0:01:36.2]}
14. Nh3 {[%clk 0:00:56.3]} 14... f3 {[%clk 0:01:28.8]} 15. O-O {[%clk
0:00:40.3]} 15... Bc5+ {[%clk 0:01:26]} 16. Bd4 {[%clk 0:00:19.1]} 16... fxe2
{[%clk 0:01:20.1]} 17. Qxe2 {[%clk 0:00:13]} 17... Bxd4+ {[%clk 0:01:19.2]} 18.
Kh1 {[%clk 0:00:13.6]} 18... Qe5 {[%clk 0:01:12.8]} 19. Rae1 {[%clk 0:00:07]}
19... e3 {[%clk 0:01:11.1]} 20. a3 {[%clk 0:00:03.5]} 20... Na6 {[%clk
0:01:05.5]} 21. Nf4 {[%clk 0:00:03.8]} 21... O-O {[%clk 0:01:03.3]} 22. Rf3
{[%clk 0:00:03]} 22... Bg4 {[%clk 0:01:00]} 0-1

[Event "*** Titled Tuesday Blitz"]
[Site "Chess.com"]
[Date "2021.03.16"]
[Round "9"]
[White "tptagain"]
[Black "slavenok"]
[Result "1/2-1/2"]
[WhiteElo "2866"]
[BlackElo "2747"]
[TimeControl "180+1"]
[EndTime "11:43:25 PDT"]
[Termination "Game drawn by agreement"]

1. e4 {[%clk 0:02:58.2]} 1... c5 {[%clk 0:02:59.5]} 2. Nc3 {[%clk 0:02:57.2]}
2... e6 {[%clk 0:02:59.4]} 3. Nf3 {[%clk 0:02:53.1]} 3... a6 {[%clk 0:02:59.9]}
4. g3 {[%clk 0:02:51.2]} 4... d5 {[%clk 0:02:58.8]} 5. exd5 {[%clk 0:02:49.6]}
5... exd5 {[%clk 0:02:59.7]} 6. d4 {[%clk 0:02:49.7]} 6... cxd4 {[%clk
0:02:58.6]} 7. Nxd4 {[%clk 0:02:49]} 7... Nf6 {[%clk 0:02:58]} 8. Bg2 {[%clk
0:02:48.8]} 8... Nc6 {[%clk 0:02:57.4]} 9. O-O {[%clk 0:02:46.8]} 9... Be7
{[%clk 0:02:56.4]} 10. Re1 {[%clk 0:02:43.1]} 10... O-O {[%clk 0:02:54]} 11. h3
{[%clk 0:02:37.4]} 11... h6 {[%clk 0:02:53.7]} 12. Be3 {[%clk 0:02:36.8]} 12...
Be6 {[%clk 0:02:51]} 13. Nxe6 {[%clk 0:02:21.1]} 13... fxe6 {[%clk 0:02:51.9]}
14. Ne2 {[%clk 0:02:21.7]} 14... Qd7 {[%clk 0:02:49.3]} 15. Nf4 {[%clk
0:02:17.5]} 15... Bd6 {[%clk 0:02:48.6]} 16. Ng6 {[%clk 0:02:13.4]} 16... Rfe8
{[%clk 0:02:46]} 17. Qd3 {[%clk 0:02:09.2]} 17... Qf7 {[%clk 0:02:43.3]} 18. Nf4
{[%clk 0:02:05.6]} 18... Nb4 {[%clk 0:02:40.3]} 19. Qd1 {[%clk 0:01:58.8]} 19...
Rac8 {[%clk 0:02:36.5]} 20. c3 {[%clk 0:01:58.1]} 20... Nc6 {[%clk 0:02:35.6]}
21. Nd3 {[%clk 0:01:50.4]} 21... e5 {[%clk 0:02:33.6]} 22. Qd2 {[%clk
0:01:44.3]} 22... e4 {[%clk 0:02:32]} 23. Nf4 {[%clk 0:01:41.2]} 23... Ne5
{[%clk 0:02:32.5]} 24. Rad1 {[%clk 0:01:37.5]} 24... Nc4 {[%clk 0:02:32.5]} 25.
Qe2 {[%clk 0:01:38]} 25... Nxe3 {[%clk 0:02:27.9]} 26. Qxe3 {[%clk 0:01:33.5]}
26... Bc5 {[%clk 0:02:28.1]} 27. Qd2 {[%clk 0:01:30.2]} 27... Rcd8 {[%clk
0:02:24.9]} 28. Qc2 {[%clk 0:01:12.7]} 28... Qc7 {[%clk 0:02:21.5]} 29. Ne2
{[%clk 0:01:05.3]} 29... Qb6 {[%clk 0:02:18]} 30. Nd4 {[%clk 0:01:04.4]} 30...
Rf8 {[%clk 0:02:17.6]} 31. b4 {[%clk 0:01:02.1]} 31... Bxd4 {[%clk 0:02:12.7]}
32. Rxd4 {[%clk 0:01:01.2]} 32... Rc8 {[%clk 0:02:11.9]} 33. Qd2 {[%clk
0:01:00.9]} 33... Qc7 {[%clk 0:02:06.5]} 34. Rc1 {[%clk 0:00:58.6]} 34... Qe5
{[%clk 0:02:01.2]} 35. c4 {[%clk 0:00:56.9]} 35... Rfd8 {[%clk 0:01:55.8]} 36.
Rd1 {[%clk 0:00:52.7]} 36... Rd6 {[%clk 0:01:53.4]} 37. cxd5 {[%clk 0:00:52.4]}
37... Rcd8 {[%clk 0:01:51.5]} 38. Qe2 {[%clk 0:00:43.9]} 38... Rxd5 {[%clk
0:01:46.9]} 39. Qc4 {[%clk 0:00:39.4]} 39... b5 {[%clk 0:01:43.1]} 40. Qb3
{[%clk 0:00:39.4]} 40... Kh8 {[%clk 0:01:38.4]} 41. Rxd5 {[%clk 0:00:39.1]}
41... Rxd5 {[%clk 0:01:38.3]} 42. Rxd5 {[%clk 0:00:39.3]} 42... Nxd5 {[%clk
0:01:36.8]} 43. a3 {[%clk 0:00:35]} 43... e3 {[%clk 0:01:31.3]} 44. fxe3 {[%clk
0:00:30.9]} 44... Nxe3 {[%clk 0:01:28.5]} 45. Kf2 {[%clk 0:00:24.1]} 1/2-1/2